[Event "IIe Tournoi de GMI du C'Chartres Echecs"]
[Site "Chartres, France"]
[Date "2021.05.17"]
[Round "1.5"]
[White "Milliet, Sophie"]
[Black "Loiseau, Quentin"]
[Result "1-0"]
[TimeControl "5400+30"]
[WhiteTitle "IM"]
[BlackTitle "IM"]
[WhiteElo "2390"]
[BlackElo "2455"]

1. e4 {[%clk 01:30:57]} {[%emt 00:00:02]} c5 {[%clk 01:30:49]} {[%emt
00:00:11]} 2. Nf3 {[%clk 01:31:22]} {[%emt 00:00:06]} e6 {[%clk 01:31:07]}
{[%emt 00:00:11]} 3. d4 {[%clk 01:31:37]} {[%emt 00:00:15]} cxd4 {[%clk
01:31:28]} {[%emt 00:00:10]} 4. Nxd4 {[%clk 01:32:03]} {[%emt 00:00:04]} Nf6
{[%clk 01:31:33]} {[%emt 00:00:23]} 5. Nc3 {[%clk 01:32:28]} {[%emt 00:00:06]}
Nc6 {[%clk 01:31:54]} {[%emt 00:00:09]} 6. Nxc6 {[%clk 01:32:43]} {[%emt
00:00:15]} bxc6 {[%clk 01:32:18]} {[%emt 00:00:06]} 7. e5 {[%clk 01:33:08]}
{[%emt 00:00:06]} Nd5 {[%clk 01:32:44]} {[%emt 00:00:03]} 8. Ne4 {[%clk
01:33:32]} {[%emt 00:00:06]} Qc7 {[%clk 01:33:03]} {[%emt 00:00:10]} 9. f4
{[%clk 01:33:55]} {[%emt 00:00:07]} Qb6 {[%clk 01:33:22]} {[%emt 00:00:12]} 10.
c4 {[%clk 01:34:16]} {[%emt 00:00:09]} Bb4+ {[%clk 01:33:39]} {[%emt 00:00:12]}
11. Ke2 {[%clk 01:34:36]} {[%emt 00:00:10]} Ba6 {[%clk 01:33:55]} {[%emt
00:00:14]} 12. Kf3 {[%clk 01:34:07]} {[%emt 00:01:00]} f5 {[%clk 01:34:08]}
{[%emt 00:00:17]} 13. Nf2 {[%clk 01:32:14]} {[%emt 00:02:23]} Ne7 {[%clk
01:33:46]} {[%emt 00:00:51]} 14. Be3 {[%clk 01:32:18]} {[%emt 00:00:27]} Bc5
{[%clk 01:34:05]} {[%emt 00:00:11]} 15. Bxc5 {[%clk 01:32:23]} {[%emt
00:00:26]} Qxc5 {[%clk 01:34:33]} {[%emt 00:00:01]} 16. Qd6 {[%clk 01:32:36]}
{[%emt 00:00:17]} Qb6 {[%clk 01:34:58]} {[%emt 00:00:04]} 17. Be2 {[%clk
01:32:26]} {[%emt 00:00:41]} g5 {[%clk 01:09:35]} {[%emt 00:25:52]} 18. fxg5
{[%clk 01:32:12]} {[%emt 00:00:44]} Ng6 {[%clk 01:08:39]} {[%emt 00:01:26]} 19.
h4 {[%clk 01:32:17]} {[%emt 00:00:25]} Qb8 {[%clk 01:07:30]} {[%emt 00:01:40]}
20. Qxb8+ {[%clk 01:31:55]} {[%emt 00:00:53]} Rxb8 {[%clk 01:07:54]} {[%emt
00:00:06]} 21. b3 {[%clk 01:32:15]} {[%emt 00:00:10]} Nxe5+ {[%clk 01:07:57]}
{[%emt 00:00:26]} 22. Kf4 {[%clk 01:32:08]} {[%emt 00:00:37]} Ng6+ {[%clk
00:55:15]} {[%emt 00:13:12]} 23. Kg3 {[%clk 01:32:20]} {[%emt 00:00:18]} d6
{[%clk 00:50:40]} {[%emt 00:05:05]} 24. h5 {[%clk 01:21:36]} {[%emt 00:11:13]}
Ne5 {[%clk 00:48:17]} {[%emt 00:02:53]} 25. Rhe1 {[%clk 01:18:35]} {[%emt
00:03:31]} Rg8 {[%clk 00:42:39]} {[%emt 00:06:08]} 26. Nh3 {[%clk 01:16:04]}
{[%emt 00:03:01]} c5 {[%clk 00:31:40]} {[%emt 00:11:29]} 27. Rad1 {[%clk
01:05:55]} {[%emt 00:10:40]} Kd7 {[%clk 00:24:21]} {[%emt 00:07:49]} 28. Bf3
{[%clk 01:00:52]} {[%emt 00:05:32]} Nf7 {[%clk 00:24:15]} {[%emt 00:00:36]} 29.
Kh4 {[%clk 00:54:19]} {[%emt 00:07:03]} Bb7 {[%clk 00:14:22]} {[%emt 00:10:24]}
30. h6 {[%clk 00:49:00]} {[%emt 00:05:49]} Ke7 {[%clk 00:05:16]} {[%emt
00:09:36]} 31. Bh5 {[%clk 00:39:47]} {[%emt 00:09:42]} Ne5 {[%clk 00:05:08]}
{[%emt 00:00:38]} 32. Nf4 {[%clk 00:39:21]} {[%emt 00:00:56]} Be4 {[%clk
00:05:15]} {[%emt 00:00:22]} 33. Re3 {[%clk 00:37:29]} {[%emt 00:02:22]} a5
{[%clk 00:04:34]} {[%emt 00:01:11]} 34. Bf3 {[%clk 00:35:12]} {[%emt 00:02:47]}
Ba8 {[%clk 00:02:17]} {[%emt 00:02:48]} 35. Rde1 {[%clk 00:30:18]} {[%emt
00:05:23]} a4 {[%clk 00:02:01]} {[%emt 00:00:46]} 36. Bxa8 {[%clk 00:24:28]}
{[%emt 00:06:20]} Rxa8 {[%clk 00:02:20]} {[%emt 00:00:11]} 37. Rxe5 {[%clk
00:24:30]} {[%emt 00:00:29]} dxe5 {[%clk 00:02:44]} {[%emt 00:00:06]} 38. Rxe5
{[%clk 00:24:56]} {[%emt 00:00:04]} Ra6 {[%clk 00:02:31]} {[%emt 00:00:42]} 39.
Rxc5 {[%clk 00:12:29]} {[%emt 00:12:58]} Kd6 {[%clk 00:02:59]} {[%emt
00:00:02]} 40. Rb5 {[%clk 00:12:32]} {[%emt 00:00:27]} axb3 {[%clk 00:02:32]}
{[%emt 00:00:58]} 41. axb3 {[%clk 00:12:58]} {[%emt 00:00:04]} Ra2 {[%clk
00:02:07]} {[%emt 00:00:54]} 42. g6 {[%clk 00:04:57]} {[%emt 00:08:32]} Rf2
{[%clk 00:01:50]} {[%emt 00:00:47]} 43. Kg3 {[%clk 00:04:45]} {[%emt 00:00:42]}
Rxf4 {[%clk 00:01:23]} {[%emt 00:00:56]} 44. Kxf4 {[%clk 00:05:06]} {[%emt
00:00:10]} Rxg6 {[%clk 00:01:52]} {[%emt 00:00:01]} 45. Rb6+ {[%clk 00:04:23]}
{[%emt 00:01:13]} Kc7 {[%clk 00:01:10]} {[%emt 00:01:11]} 46. c5 {[%clk
00:04:23]} {[%emt 00:00:30]} Rxh6 {[%clk 00:01:08]} {[%emt 00:00:32]} 47. Ke5
{[%clk 00:04:40]} {[%emt 00:00:13]} Rg6 {[%clk 00:00:38]} {[%emt 00:01:01]} 48.
Rxe6 {[%clk 00:04:46]} {[%emt 00:00:23]} Rxg2 {[%clk 00:00:43]} {[%emt
00:00:25]} 49. Kxf5 {[%clk 00:04:04]} {[%emt 00:01:13]} h5 {[%clk 00:00:36]}
{[%emt 00:00:37]} 50. b4 {[%clk 00:03:33]} {[%emt 00:01:02]} Rb2 {[%clk
00:00:32]} {[%emt 00:00:33]} 51. Rb6 {[%clk 00:03:04]} {[%emt 00:00:59]} Rg2
{[%clk 00:00:35]} {[%emt 00:00:27]} 52. b5 {[%clk 00:02:20]} {[%emt 00:01:15]}
h4 {[%clk 00:00:33]} {[%emt 00:00:32]} 53. Rh6 {[%clk 00:01:55]} {[%emt
00:00:53]} Rc2 {[%clk 00:00:49]} {[%emt 00:00:15]} 54. Rc6+ {[%clk 00:01:27]}
{[%emt 00:00:58]} Kd7 {[%clk 00:00:42]} {[%emt 00:00:39]} 55. Kg4 {[%clk
00:01:46]} {[%emt 00:00:10]} Rc4+ {[%clk 00:00:57]} {[%emt 00:00:16]} 56. Kh3
{[%clk 00:02:13]} {[%emt 00:00:03]} Rd4 {[%clk 00:00:34]} {[%emt 00:00:53]} 57.
Rh6 {[%clk 00:01:36]} {[%emt 00:01:06]} Rd5 {[%clk 00:00:32]} {[%emt 00:00:32]}
58. c6+ {[%clk 00:01:51]} {[%emt 00:00:15]} Kc7 {[%clk 00:00:48]} {[%emt
00:00:14]} 59. Rh7+ {[%clk 00:02:16]} {[%emt 00:00:06]} Kb8 {[%clk 00:00:31]}
{[%emt 00:00:47]} 60. b6 {[%clk 00:02:37]} {[%emt 00:00:09]} 1-0

[Event "IIe Tournoi de GMI du C'Chartres Echecs"]
[Site "Chartres, France"]
[Date "2021.05.17"]
[Round "2.1"]
[White "Shirazi, Kamran"]
[Black "Milliet, Sophie"]
[Result "0-1"]
[TimeControl "5400+30"]
[WhiteTitle "IM"]
[BlackTitle "IM"]
[WhiteElo "2349"]
[BlackElo "2390"]

1. e4 {[%clk 01:30:31]} {[%emt 00:00:28]} c5 {[%clk 01:30:44]} {[%emt
00:00:16]} 2. b4 {[%clk 01:30:43]} {[%emt 00:00:18]} cxb4 {[%clk 01:31:02]}
{[%emt 00:00:12]} 3. a3 {[%clk 01:31:08]} {[%emt 00:00:05]} e5 {[%clk
01:31:21]} {[%emt 00:00:11]} 4. axb4 {[%clk 01:30:18]} {[%emt 00:01:20]} Bxb4
{[%clk 01:31:37]} {[%emt 00:00:15]} 5. c3 {[%clk 01:30:40]} {[%emt 00:00:07]}
Be7 {[%clk 01:31:07]} {[%emt 00:01:01]} 6. f4 {[%clk 01:29:27]} {[%emt
00:01:43]} exf4 {[%clk 01:25:37]} {[%emt 00:06:01]} 7. Bc4 {[%clk 01:28:33]}
{[%emt 00:01:23]} d5 {[%clk 01:14:47]} {[%emt 00:11:21]} 8. Bxd5 {[%clk
01:17:51]} {[%emt 00:11:12]} Nf6 {[%clk 01:15:09]} {[%emt 00:00:08]} 9. Ba2
{[%clk 01:16:21]} {[%emt 00:02:00]} Qd3 {[%clk 01:02:07]} {[%emt 00:13:31]} 10.
e5 {[%clk 01:16:34]} {[%emt 00:00:18]} Ng4 {[%clk 00:56:51]} {[%emt 00:05:45]}
11. Qa4+ {[%clk 01:07:15]} {[%emt 00:09:50]} Nc6 {[%clk 00:55:43]} {[%emt
00:01:38]} 12. Nf3 {[%clk 01:07:41]} {[%emt 00:00:04]} Bc5 {[%clk 00:51:52]}
{[%emt 00:04:21]} 13. Rf1 {[%clk 01:04:45]} {[%emt 00:03:26]} O-O {[%clk
00:42:12]} {[%emt 00:10:11]} 14. Qxf4 {[%clk 01:01:01]} {[%emt 00:04:13]} Ngxe5
{[%clk 00:33:02]} {[%emt 00:09:41]} 15. Nxe5 {[%clk 01:00:16]} {[%emt
00:01:14]} Nxe5 {[%clk 00:33:27]} {[%emt 00:00:06]} 16. Qxe5 {[%clk 00:58:19]}
{[%emt 00:02:27]} Bg4 {[%clk 00:33:47]} {[%emt 00:00:10]} 17. Rf4 {[%clk
00:53:13]} {[%emt 00:05:35]} Rae8 {[%clk 00:31:55]} {[%emt 00:02:22]} 0-1

[Event "IIe Tournoi de GMI du C'Chartres Echecs"]
[Site "Chartres, France"]
[Date "2021.05.17"]
[Round "2.2"]
[White "Dgebuadze, Alexandre"]
[Black "David, Alberto"]
[Result "1/2-1/2"]
[TimeControl "5400+30"]
[WhiteTitle "GM"]
[BlackTitle "GM"]
[WhiteElo "2490"]
[BlackElo "2517"]

1. d4 {[%clk 01:31:12]} {[%emt 00:00:17]} Nf6 {[%clk 01:31:06]} {[%emt
00:00:24]} 2. Nf3 {[%clk 01:31:35]} {[%emt 00:00:10]} e6 {[%clk 01:30:28]}
{[%emt 00:01:04]} 3. e3 {[%clk 01:30:21]} {[%emt 00:01:44]} c5 {[%clk
01:25:17]} {[%emt 00:05:41]} 4. c4 {[%clk 01:29:23]} {[%emt 00:01:28]} a6
{[%clk 01:23:06]} {[%emt 00:02:42]} 5. a3 {[%clk 01:23:45]} {[%emt 00:06:08]}
d5 {[%clk 01:19:41]} {[%emt 00:03:54]} 6. dxc5 {[%clk 01:20:40]} {[%emt
00:03:36]} Bxc5 {[%clk 01:20:05]} {[%emt 00:00:06]} 7. b4 {[%clk 01:20:55]}
{[%emt 00:00:15]} Be7 {[%clk 01:19:01]} {[%emt 00:01:34]} 8. Bb2 {[%clk
01:19:07]} {[%emt 00:02:19]} O-O {[%clk 01:18:02]} {[%emt 00:01:29]} 9. Nbd2
{[%clk 01:19:00]} {[%emt 00:00:36]} b6 {[%clk 01:14:06]} {[%emt 00:04:26]} 10.
Qc2 {[%clk 01:10:37]} {[%emt 00:08:53]} Nbd7 {[%clk 01:13:09]} {[%emt
00:01:27]} 11. Bd3 {[%clk 01:03:14]} {[%emt 00:07:54]} h6 {[%clk 00:57:38]}
{[%emt 00:16:01]} 12. Rc1 {[%clk 00:51:37]} {[%emt 00:12:07]} Bb7 {[%clk
00:56:07]} {[%emt 00:02:01]} 13. Qb1 {[%clk 00:51:35]} {[%emt 00:00:32]} dxc4
{[%clk 00:50:12]} {[%emt 00:06:26]} 14. Nxc4 {[%clk 00:50:45]} {[%emt
00:01:20]} a5 {[%clk 00:47:27]} {[%emt 00:03:14]} 15. O-O {[%clk 00:32:46]}
{[%emt 00:18:29]} axb4 {[%clk 00:37:49]} {[%emt 00:10:09]} 16. axb4 {[%clk
00:33:10]} {[%emt 00:00:06]} Bxb4 {[%clk 00:34:16]} {[%emt 00:04:03]} 17. Bxf6
{[%clk 00:24:20]} {[%emt 00:09:20]} Nxf6 {[%clk 00:34:27]} {[%emt 00:00:18]} 18.
Qxb4 {[%clk 00:19:44]} {[%emt 00:05:06]} Bxf3 {[%clk 00:31:15]} {[%emt
00:03:43]} 19. Qb1 {[%clk 00:12:20]} {[%emt 00:07:54]} Bd5 {[%clk 00:26:01]}
{[%emt 00:05:44]} 20. Rfd1 {[%clk 00:11:28]} {[%emt 00:01:21]} Rb8 {[%clk
00:24:39]} {[%emt 00:01:53]} 21. Qb4 {[%clk 00:07:31]} {[%emt 00:04:27]} Nd7
{[%clk 00:07:46]} {[%emt 00:17:23]} 22. e4 {[%clk 00:06:26]} {[%emt 00:01:34]}
Bxc4 {[%clk 00:08:01]} {[%emt 00:00:15]} 23. Bxc4 {[%clk 00:06:08]} {[%emt
00:00:48]} Qg5 {[%clk 00:08:17]} {[%emt 00:00:14]} 24. h4 {[%clk 00:04:41]}
{[%emt 00:01:58]} Qc5 {[%clk 00:08:32]} {[%emt 00:00:15]} 25. Qd2 {[%clk
00:01:44]} {[%emt 00:03:26]} Nf6 {[%clk 00:08:38]} {[%emt 00:00:24]} 26. Bxe6
{[%clk 00:01:55]} {[%emt 00:00:19]} Nxe4 {[%clk 00:08:48]} {[%emt 00:00:20]} 27.
Rxc5 {[%clk 00:01:11]} {[%emt 00:01:14]} Nxd2 {[%clk 00:09:13]} {[%emt
00:00:05]} 28. Rc7 {[%clk 00:01:28]} {[%emt 00:00:12]} Rbd8 {[%clk 00:05:38]}
{[%emt 00:04:07]} 29. Bd7 {[%clk 00:01:46]} {[%emt 00:00:12]} Ne4 {[%clk
00:05:45]} {[%emt 00:00:23]} 30. Rb1 {[%clk 00:01:38]} {[%emt 00:00:38]} Nc5
{[%clk 00:04:59]} {[%emt 00:01:16]} 31. Bc6 {[%clk 00:01:14]} {[%emt 00:00:54]}
Rd6 {[%clk 00:02:56]} {[%emt 00:02:33]} 32. Bb5 {[%clk 00:01:03]} {[%emt
00:00:42]} Rfd8 {[%clk 00:00:57]} {[%emt 00:02:29]} 33. g3 {[%clk 00:01:06]}
{[%emt 00:00:28]} Kf8 {[%clk 00:00:38]} {[%emt 00:00:49]} 34. Bc4 {[%clk
00:01:08]} {[%emt 00:00:28]} Rd1+ {[%clk 00:00:38]} {[%emt 00:00:30]} 35. Rxd1
{[%clk 00:01:29]} {[%emt 00:00:08]} Rxd1+ {[%clk 00:01:04]} {[%emt 00:00:04]}
36. Kg2 {[%clk 00:01:44]} {[%emt 00:00:14]} Rd7 {[%clk 00:01:14]} {[%emt
00:00:21]} 37. Rc8+ {[%clk 00:00:57]} {[%emt 00:01:17]} Ke7 {[%clk 00:01:40]}
{[%emt 00:00:05]} 38. Rg8 {[%clk 00:01:00]} {[%emt 00:00:25]} g6 {[%clk
00:00:40]} {[%emt 00:01:32]} 39. Rb8 {[%clk 00:00:37]} {[%emt 00:00:53]} Rb7
{[%clk 00:00:45]} {[%emt 00:00:24]} 40. Rc8 {[%clk 00:00:56]} {[%emt 00:00:10]}
h5 {[%clk 00:00:57]} {[%emt 00:00:18]} 41. Bd5 {[%clk 00:00:53]} {[%emt
00:00:34]} Rd7 {[%clk 00:01:11]} {[%emt 00:00:16]} 42. Bc4 {[%clk 00:01:07]}
{[%emt 00:00:16]} Ne4 {[%clk 00:00:37]} {[%emt 00:01:04]} 43. Bb5 {[%clk
00:01:16]} {[%emt 00:00:21]} Rd8 {[%clk 00:00:47]} {[%emt 00:00:20]} 44. Rc7+
{[%clk 00:01:28]} {[%emt 00:00:16]} Kf6 {[%clk 00:00:37]} {[%emt 00:00:42]} 45.
Rb7 {[%clk 00:00:52]} {[%emt 00:01:06]} Rd2 {[%clk 00:00:32]} {[%emt 00:00:34]}
46. Kf3 {[%clk 00:00:35]} {[%emt 00:00:48]} Nxf2 {[%clk 00:00:40]} {[%emt
00:00:21]} 47. Bc4 {[%clk 00:00:52]} {[%emt 00:00:13]} Ng4 {[%clk 00:00:43]}
{[%emt 00:00:26]} 48. Rxf7+ {[%clk 00:00:53]} {[%emt 00:00:29]} Ke5 {[%clk
00:01:11]} {[%emt 00:00:03]} 49. Re7+ {[%clk 00:01:00]} {[%emt 00:00:24]} Kd6
{[%clk 00:01:00]} {[%emt 00:00:40]} 50. Re6+ {[%clk 00:01:20]} {[%emt
00:00:11]} Kd7 {[%clk 00:00:45]} {[%emt 00:00:46]} 51. Re2 {[%clk 00:01:22]}
{[%emt 00:00:27]} Rxe2 {[%clk 00:00:34]} {[%emt 00:00:41]} 52. Bxe2 {[%clk
00:01:45]} {[%emt 00:00:07]} Ke6 {[%clk 00:00:33]} {[%emt 00:00:31]} 53. Kf4
{[%clk 00:01:48]} {[%emt 00:00:27]} Kf6 {[%clk 00:00:40]} {[%emt 00:00:24]} 54.
Ba6 {[%clk 00:01:39]} {[%emt 00:00:39]} Ne5 {[%clk 00:00:55]} {[%emt 00:00:14]}
55. Bb5 {[%clk 00:02:01]} {[%emt 00:00:09]} Ng4 {[%clk 00:00:54]} {[%emt
00:00:31]} 56. Ba6 {[%clk 00:02:16]} {[%emt 00:00:16]} Nh6 {[%clk 00:01:10]}
{[%emt 00:00:14]} 57. Be2 {[%clk 00:02:06]} {[%emt 00:00:39]} Nf5 {[%clk
00:01:27]} {[%emt 00:00:13]} 58. g4 {[%clk 00:01:00]} {[%emt 00:01:36]} Nd4
{[%clk 00:00:33]} {[%emt 00:01:24]} 59. Bd1 {[%clk 00:01:07]} {[%emt 00:00:23]}
Ne6+ {[%clk 00:00:37]} {[%emt 00:00:26]} 60. Ke4 {[%clk 00:01:28]} {[%emt
00:00:08]} g5 {[%clk 00:00:56]} {[%emt 00:00:13]} 61. gxh5 {[%clk 00:01:28]}
{[%emt 00:00:30]} gxh4 {[%clk 00:01:22]} {[%emt 00:00:04]} 62. Bg4 {[%clk
00:01:37]} {[%emt 00:00:21]} Nc5+ {[%clk 00:01:00]} {[%emt 00:00:52]} 63. Kd5
{[%clk 00:00:42]} {[%emt 00:01:25]} Nd3 {[%clk 00:01:22]} {[%emt 00:00:09]} 64.
h6 {[%clk 00:00:38]} {[%emt 00:00:34]} b5 {[%clk 00:00:36]} {[%emt 00:02:02]}
65. h7 {[%clk 00:00:42]} Kg7 {[%clk 00:00:59]} 66. Bf5 {[%clk 00:01:02]} Ne1
{[%clk 00:00:35]} {[%emt 00:00:51]} 67. Kc5 {[%clk 00:01:11]} {[%emt 00:00:20]}
Nf3 {[%clk 00:01:01]} {[%emt 00:00:05]} 68. Bg4 {[%clk 00:00:45]} {[%emt
00:00:55]} Ne5 {[%clk 00:01:08]} {[%emt 00:00:24]} 69. Bf5 {[%clk 00:01:04]}
{[%emt 00:00:10]} Nc4 {[%clk 00:01:05]} {[%emt 00:00:34]} 70. Bh3 {[%clk
00:00:43]} {[%emt 00:00:51]} Kxh7 {[%clk 00:00:46]} {[%emt 00:00:49]} 71. Kxb5
{[%clk 00:01:09]} {[%emt 00:00:05]} Ne3 {[%emt 00:00:21]} 1/2-1/2

[Event "IIe Tournoi de GMI du C'Chartres Echecs"]
[Site "Chartres, France"]
[Date "2021.05.17"]
[Round "2.3"]
[White "Maurizzi, Marc Andria"]
[Black "Vlachos, Anatole"]
[Result "1/2-1/2"]
[TimeControl "5400+30"]
[WhiteTitle "IM"]
[BlackTitle "IM"]
[WhiteElo "2489"]
[BlackElo "2438"]

1. e4 {[%clk 01:30:42]} {[%emt 00:00:10]} e5 {[%clk 01:30:40]} {[%emt
00:00:18]} 2. Nf3 {[%clk 01:30:58]} {[%emt 00:00:15]} Nc6 {[%clk 01:31:05]}
{[%emt 00:00:05]} 3. d4 {[%clk 01:30:15]} {[%emt 00:01:13]} exd4 {[%clk
01:31:25]} {[%emt 00:00:10]} 4. Nxd4 {[%clk 01:30:43]} {[%emt 00:00:02]} Bc5
{[%clk 01:31:42]} {[%emt 00:00:12]} 5. Nb3 {[%clk 01:30:46]} {[%emt 00:00:27]}
Bb6 {[%clk 01:32:00]} {[%emt 00:00:12]} 6. Nc3 {[%clk 01:31:07]} {[%emt
00:00:10]} Nf6 {[%clk 01:31:34]} {[%emt 00:00:54]} 7. Bg5 {[%clk 01:31:19]}
{[%emt 00:00:18]} h6 {[%clk 01:28:11]} {[%emt 00:03:52]} 8. Bh4 {[%clk
01:31:12]} {[%emt 00:00:38]} O-O {[%clk 01:28:29]} {[%emt 00:00:11]} 9. Bd3
{[%clk 01:31:01]} {[%emt 00:00:42]} Re8 {[%clk 01:22:14]} {[%emt 00:06:45]} 10.
O-O {[%clk 01:30:22]} {[%emt 00:01:09]} a5 {[%clk 01:14:06]} {[%emt 00:08:37]}
11. Nd2 {[%clk 01:13:29]} {[%emt 00:17:24]} g5 {[%clk 01:05:08]} {[%emt
00:09:27]} 12. Bg3 {[%clk 01:13:52]} {[%emt 00:00:07]} d5 {[%clk 01:05:29]}
{[%emt 00:00:08]} 13. exd5 {[%clk 01:04:02]} {[%emt 00:10:20]} Bg4 {[%clk
01:04:55]} {[%emt 00:01:03]} 14. Qc1 {[%clk 00:58:58]} {[%emt 00:05:35]} Nxd5
{[%clk 01:04:14]} {[%emt 00:01:11]} 15. Nc4 {[%clk 00:57:44]} {[%emt 00:01:44]}
Nxc3 {[%clk 00:49:15]} {[%emt 00:15:28]} 16. bxc3 {[%clk 00:53:58]} {[%emt
00:04:17]} Bc5 {[%clk 00:45:52]} {[%emt 00:03:53]} 17. Rb1 {[%clk 00:47:37]}
{[%emt 00:06:51]} b6 {[%clk 00:42:18]} {[%emt 00:04:04]} 18. h4 {[%clk
00:43:01]} {[%emt 00:05:07]} Be6 {[%clk 00:24:28]} {[%emt 00:18:20]} 19. Kh1
{[%clk 00:23:44]} {[%emt 00:19:47]} f5 {[%clk 00:17:58]} {[%emt 00:07:00]} 20.
Rd1 {[%clk 00:15:28]} {[%emt 00:08:45]} Qe7 {[%clk 00:16:23]} {[%emt 00:02:05]}
21. f3 {[%clk 00:11:27]} {[%emt 00:04:31]} Qf7 {[%clk 00:14:48]} {[%emt
00:02:05]} 22. Nd2 {[%clk 00:07:12]} {[%emt 00:04:45]} Bxa2 {[%clk 00:12:32]}
{[%emt 00:02:45]} 23. Bb5 {[%clk 00:06:03]} {[%emt 00:01:41]} Qf6 {[%clk
00:10:46]} {[%emt 00:02:15]} 24. Ra1 {[%clk 00:06:05]} {[%emt 00:00:28]} Bf7
{[%clk 00:10:22]} {[%emt 00:00:54]} 25. Ra4 {[%clk 00:05:03]} {[%emt 00:01:32]}
Re7 {[%clk 00:10:00]} {[%emt 00:00:51]} 26. Nb3 {[%clk 00:04:39]} {[%emt
00:00:55]} Be3 {[%clk 00:10:05]} {[%emt 00:00:25]} 27. Qa3 {[%clk 00:05:08]}
{[%emt 00:00:02]} Na7 {[%clk 00:05:44]} {[%emt 00:04:50]} 28. Bf1 {[%clk
00:04:20]} {[%emt 00:01:18]} f4 {[%clk 00:04:55]} {[%emt 00:01:20]} 29. Bh2
{[%clk 00:04:20]} {[%emt 00:00:30]} Rae8 {[%clk 00:05:04]} {[%emt 00:00:21]} 30.
Nd4 {[%clk 00:04:09]} {[%emt 00:00:41]} Bf2 {[%clk 00:04:18]} {[%emt 00:01:16]}
31. Qb2 {[%clk 00:03:55]} {[%emt 00:00:44]} c5 {[%clk 00:03:22]} {[%emt
00:01:26]} 32. Nb5 {[%clk 00:03:43]} {[%emt 00:00:41]} Nxb5 {[%clk 00:03:41]}
{[%emt 00:00:11]} 33. Qxb5 {[%clk 00:04:12]} {[%emt 00:00:01]} Qxc3 {[%clk
00:03:37]} {[%emt 00:00:34]} 34. Raa1 {[%clk 00:03:54]} {[%emt 00:00:48]} Re1
{[%clk 00:03:31]} {[%emt 00:00:36]} 35. Rxe1 {[%clk 00:03:59]} {[%emt
00:00:25]} Rxe1 {[%clk 00:03:56]} {[%emt 00:00:05]} 36. Rxe1 {[%clk 00:04:24]}
{[%emt 00:00:04]} Qxe1 {[%clk 00:04:20]} {[%emt 00:00:06]} 37. Bg1 {[%clk
00:04:44]} {[%emt 00:00:10]} Be3 {[%clk 00:04:04]} {[%emt 00:00:45]} 38. hxg5
{[%clk 00:04:45]} {[%emt 00:00:30]} hxg5 {[%clk 00:03:09]} {[%emt 00:01:24]} 39.
Qd3 {[%clk 00:04:41]} {[%emt 00:00:34]} Qh4+ {[%clk 00:01:31]} {[%emt
00:02:09]} 40. Bh2 {[%clk 00:05:10]} Bf2 {[%clk 00:01:37]} {[%emt 00:00:24]} 41.
Qd8+ {[%clk 00:05:19]} {[%emt 00:00:20]} Kg7 {[%clk 00:02:01]} {[%emt
00:00:06]} 42. Qe7 {[%clk 00:05:36]} {[%emt 00:00:14]} Qh6 {[%clk 00:01:58]}
{[%emt 00:00:33]} 43. c3 {[%clk 00:04:47]} {[%emt 00:01:19]} Bg3 {[%clk
00:01:43]} {[%emt 00:00:45]} 44. Qe5+ {[%clk 00:05:16]} {[%emt 00:00:01]} Kg8
{[%clk 00:01:57]} {[%emt 00:00:15]} 45. Qb8+ {[%clk 00:05:41]} {[%emt
00:00:06]} Kg7 {[%clk 00:02:23]} {[%emt 00:00:04]} 46. Qe5+ {[%clk 00:06:08]}
{[%emt 00:00:02]} Qf6 {[%clk 00:02:49]} {[%emt 00:00:04]} 47. Qc7 {[%clk
00:06:26]} {[%emt 00:00:12]} a4 {[%clk 00:01:42]} {[%emt 00:01:37]} 48. Bc4
{[%clk 00:06:19]} {[%emt 00:00:37]} a3 {[%clk 00:02:04]} {[%emt 00:00:09]} 49.
Bd5 {[%clk 00:05:52]} {[%emt 00:00:56]} Qf5 {[%clk 00:01:27]} {[%emt 00:01:07]}
50. Ba2 {[%clk 00:05:02]} {[%emt 00:01:18]} c4 {[%clk 00:01:10]} {[%emt
00:00:48]} 51. Qxb6 {[%clk 00:03:30]} {[%emt 00:02:02]} Qc2 {[%clk 00:00:35]}
{[%emt 00:01:04]} 52. Qd4+ {[%clk 00:01:06]} {[%emt 00:02:55]} Kh7 {[%clk
00:00:55]} {[%emt 00:00:08]} 53. Qd7 {[%clk 00:00:52]} {[%emt 00:00:47]} Kg6
{[%clk 00:00:58]} {[%emt 00:00:26]} 54. Qd6+ {[%clk 00:00:57]} {[%emt
00:00:26]} Kf5 {[%clk 00:00:39]} {[%emt 00:00:47]} 55. Qc5+ {[%clk 00:00:44]}
{[%emt 00:00:44]} Kf6 {[%clk 00:00:51]} {[%emt 00:00:18]} 56. Qd6+ {[%clk
00:00:34]} {[%emt 00:00:40]} Be6 {[%clk 00:00:59]} {[%emt 00:00:20]} 57. Qf8+
{[%clk 00:00:31]} {[%emt 00:00:36]} Kg6 {[%clk 00:01:02]} {[%emt 00:00:23]} 58.
Qd6 {[%clk 00:00:36]} {[%emt 00:00:29]} Kf7 {[%clk 00:00:53]} {[%emt 00:00:38]}
59. Qc7+ {[%clk 00:00:51]} {[%emt 00:00:16]} Kf6 {[%clk 00:00:58]} {[%emt
00:00:24]} 60. Qd8+ {[%clk 00:01:11]} {[%emt 00:00:10]} Kg6 {[%clk 00:01:09]}
{[%emt 00:00:18]} 61. Qd6 {[%clk 00:01:38]} {[%emt 00:00:04]} Kf7 {[%clk
00:00:59]} {[%emt 00:00:39]} 62. Qc7+ {[%clk 00:02:04]} {[%emt 00:00:04]} Kg8
{[%clk 00:00:48]} {[%emt 00:00:41]} 63. Qd8+ {[%clk 00:01:44]} {[%emt
00:00:51]} Kf7 {[%clk 00:01:13]} {[%emt 00:00:05]} 64. Qc7+ {[%clk 00:01:42]}
{[%emt 00:00:32]} Kf6 {[%clk 00:00:48]} {[%emt 00:00:54]} 65. Qd8+ {[%clk
00:02:07]} {[%emt 00:00:06]} Kf5 {[%clk 00:00:54]} {[%emt 00:00:21]} 66. Qf8+
{[%clk 00:02:07]} {[%emt 00:00:32]} Kg6 {[%clk 00:00:57]} {[%emt 00:00:28]} 67.
Qd6 {[%emt 00:01:36]} 1/2-1/2